bitfinex/quotes_SOLUSD_20240827
["timestamp","ask_amount","ask_price","bid_price","bid_amount"]
[1724795713847,37.3237,149.51,149.32,0.25098]
[1724795714052,0.25098,149.5,149.32,0.25098]
[1724795714638,6.93998,149.5,149.32,0.25098]
[1724795714849,20.0,149.49,149.32,0.25098]
[1724795715066,0.25098,149.5,149.32,0.25098]
[1724795716358,6.93998,149.5,149.32,0.25098]
[1724795716562,20.0,149.49,149.32,0.25098]
[1724795717057,10.6351,149.51,149.32,0.25098]
[1724795717058,10.6351,149.51,149.33,12.1866]
[1724795717369,10.6351,149.51,149.34,0.25098]
[1724795717543,6.6848,149.6,149.34,20.25098]
[1724795717741,18.8714,149.6,149.34,20.25098]
[1724795717972,18.8714,149.6,149.35,12.3253]
[1724795718140,6.6848,149.6,149.36,0.25098]
[1724795718346,32.3252,149.62,149.36,0.25098]
[1724795718845,6.6845,149.6,149.36,0.25098]
[1724795719044,6.6845,149.6,149.36,45.25098]
[1724795719675,32.3252,149.62,149.36,45.25098]
[1724795720059,6.686,149.57,149.36,45.12549]
[1724795720371,6.686,149.57,149.35,12.3253]
[1724795720372,45.25098,149.56,149.35,12.3253]
[1724795720561,50.0,149.55,149.35,12.3253]
[1724795720760,65.25098,149.54,149.35,12.3253]
[1724795721153,20.0,149.54,149.35,12.3253]
[1724795721361,32.3252,149.62,149.35,12.3253]
[1724795721362,20.0,149.57,149.35,12.3253]
[1724795721551,20.0,149.58,149.35,12.3253]
[1724795721746,45.25098,149.57,149.35,12.3253]
[1724795721973,20.0,149.56,149.35,12.3253]
[1724795722174,0.12549,149.55,149.35,12.3253]
[1724795722473,6.6877,149.53,149.35,12.3253]
[1724795722658,82.3253,149.56,149.35,12.3253]
[1724795722659,20.0,149.52,149.35,12.3253]
[1724795722970,39.009,149.62,149.36,13.7845]
[1724795723357,6.6838,149.62,149.36,13.7845]
[1724795723558,0.2782436,149.65,149.39,12.2812]
[1724795723761,0.2782436,149.65,149.38,8.1975]
[1724795723762,0.2782436,149.65,149.41,12.2812]
[1724795724063,0.2782436,149.65,149.43,12.2812]
[1724795724064,6.9604436,149.65,149.43,12.2812]
[1724795724272,6.6828,149.64,149.44,45.25098]
[1724795724565,0.2782436,149.65,149.44,45.25098]
[1724795724763,6.6827,149.64,149.44,45.25098]
[1724795724946,0.2782436,149.65,149.44,45.25098]
[1724795725148,6.6836,149.62,149.44,45.25098]
[1724795725661,20.0,149.61,149.44,45.25098]
[1724795725869,0.12549,149.6,149.44,45.25098]
[1724795726170,20.0,149.61,149.44,45.25098]
[1724795726378,6.6833,149.63,149.44,45.25098]
[1724795726581,20.12549,149.62,149.44,45.25098]
[1724795726759,26.80909,149.62,149.44,45.25098]
[1724795727072,20.12549,149.62,149.43,12.2812]
[1724795727370,0.12549,149.61,149.43,12.2812]
[1724795728070,58.42519,149.61,149.34,12.9066]
[1724795728375,6.6853,149.59,149.34,12.9066]
[1724795728677,45.12549,149.58,149.35,11.4592]
[1724795728857,6.80999,149.6,149.36,12.9066]
[1724795729260,0.12549,149.6,149.36,12.9066]
[1724795729470,1.56072679,149.63,149.37,51.9448]
[1724795729677,6.6827,149.64,149.39,12.9066]
[1724795729984,6.6839,149.62,149.4,20.12549]
[1724795730276,13.3676,149.62,149.41,13.03209]
[1724795730575,6.6839,149.62,149.41,12.9066]
[1724795730774,6.6854,149.58,149.41,12.9066]
[1724795730953,20.12549,149.57,149.41,12.9066]
[1724795731158,6.6875,149.54,149.41,12.9066]
[1724795731475,26.93868,149.53,149.41,12.9066]
[1724795731779,51.6882,149.52,149.41,12.9066]
[1724795731982,20.25098,149.51,149.41,12.9066]
[1724795732166,45.0,149.5,149.41,12.9066]
[1724795732473,20.25098,149.49,149.41,12.9066]
[1724795732653,20.0,149.49,149.41,12.9066]
[1724795733081,20.12549,149.5,149.41,12.9066]
[1724795733285,20.12549,149.5,149.37,32.3437]
[1724795733286,6.6898,149.48,149.37,32.3437]
[1724795733479,45.25098,149.47,149.37,32.3437]
[1724795733781,65.12549,149.46,149.37,32.3437]
[1724795733980,20.0,149.46,149.37,32.3437]
[1724795734164,0.12549,149.47,149.37,32.3437]
[1724795734366,45.25098,149.47,149.37,32.3437]
[1724795734561,20.0,149.46,149.37,32.3437]
[1724795734883,6.98150459,149.55,149.35,9.4469]
[1724795735081,6.98150459,149.55,149.36,12.6884]
[1724795735278,6.6853,149.59,149.39,9.4469]
[1724795735468,6.6853,149.59,149.4,12.6884]
[1724795735792,6.6853,149.59,149.41,45.0]
[1724795735981,6.6853,149.59,149.42,0.25098]
[1724795736693,6.6858,149.57,149.41,45.0]
[1724795736864,6.686,149.57,149.42,0.12549]
[1724795737065,6.686,149.57,149.41,0.25098]
[1724795737488,6.6852,149.59,149.41,0.25098]
[1724795737884,6.6839,149.62,149.41,0.25098]
[1724795737885,6.6853,149.58,149.41,0.25098]
[1724795738277,13.3678,149.62,149.41,45.25098]
[1724795738791,6.6839,149.62,149.43,12.2366]
[1724795738981,6.97599323,149.66,149.46,12.2366]
[1724795739183,6.6796,149.71,149.47,77.48758]
[1724795739365,6.6796,149.71,149.47,65.25098]
[1724795739566,6.6796,149.71,149.48,12.2366]
[1724795739766,50.0,149.72,149.49,0.25098]
[1724795739968,6.681,149.68,149.49,45.25098]
[1724795740203,20.0,149.67,149.49,45.25098]
[1724795740496,26.6805,149.69,149.49,45.25098]
[1724795740698,6.681,149.68,149.49,45.25098]
[1724795740869,20.0,149.67,149.49,45.25098]
[1724795741795,45.0,149.66,149.49,0.25098]
[1724795741965,20.0,149.65,149.49,0.25098]
[1724795742588,20.0,149.71,149.49,0.25098]
[1724795742790,50.0,149.68,149.49,0.25098]
[1724795743093,6.6826,149.65,149.48,12.2366]
[1724795743389,50.0,149.68,149.48,12.2366]
[1724795743390,65.0,149.64,149.48,12.2366]
[1724795743784,0.25098,149.63,149.48,12.2366]
[1724795744590,50.25098,149.63,149.48,12.2366]
[1724795744779,50.0,149.58,149.43,12.1603]
[1724795745091,50.0,149.52,149.31,12.1603]
[1724795745290,29.8685,149.56,149.31,12.1603]
[1724795745291,30.9219,149.5,149.31,12.1603]
[1724795745684,65.12549,149.49,149.31,12.1603]
[1724795745879,6.6903,149.47,149.31,12.1603]
[1724795746202,65.25098,149.46,149.31,12.1603]
[1724795746434,6.6916,149.44,149.31,12.1603]
[1724795746701,0.12549,149.45,149.31,12.1603]
[1724795746702,65.25098,149.43,149.31,12.1603]
[1724795746869,0.12549,149.42,149.27,10.8857]
[1724795747075,50.12549,149.42,149.25,12.1603]
[1724795747276,65.12549,149.41,149.25,12.1603]
[1724795747485,20.12549,149.41,149.25,12.1603]
[1724795747791,20.0,149.48,149.25,12.1603]
[1724795748108,13.1527,149.56,149.27,12.1603]
[1724795748109,6.6868,149.55,149.27,12.1603]
[1724795748272,30.9219,149.57,149.29,12.1603]
[1724795748472,5.0,149.69,149.29,12.1603]
[1724795748473,30.9219,149.65,149.34,12.1603]
[1724795748780,6.6836,149.62,149.36,12.1603]
[1724795748979,30.9219,149.65,149.38,12.1603]
[1724795749182,30.9219,149.65,149.39,65.12549]
[1724795749595,50.0,149.7,149.4,12.1603]
[1724795749787,6.97567591,149.65,149.42,13.7737]
[1724795749981,6.6822,149.66,149.43,65.12549]
[1724795750187,6.6823,149.65,149.43,65.12549]
[1724795750390,56.97507867,149.66,149.44,0.12549]
[1724795750699,56.97507867,149.66,149.4,12.1603]
[1724795750700,50.0,149.58,149.4,12.1603]
[1724795751004,6.6899,149.48,149.35,13.7737]
[1724795751194,20.0,149.47,149.34,12.129]
[1724795751405,0.12549,149.46,149.34,12.129]
[1724795751693,45.25098,149.46,149.34,12.129]
[1724795751901,20.0,149.45,149.34,12.129]
[1724795752278,20.0,149.47,149.34,12.129]
[1724795752507,45.12549,149.46,149.34,12.129]
[1724795752806,20.12549,149.45,149.34,12.129]
[1724795753683,20.0,149.45,149.34,12.129]
[1724795753891,20.0,149.49,149.34,12.129]
[1724795754111,6.6876,149.53,149.34,12.129]
[1724795754286,50.0,149.59,149.34,12.129]
[1724795754287,32.2707,149.6,149.34,12.129]
[1724795754500,6.6854,149.58,149.34,12.129]
[1724795754699,6.6854,149.58,149.35,20.0]
[1724795755000,6.6854,149.58,149.36,0.12549]
[1724795755196,6.6854,149.58,149.36,45.25098]
[1724795755608,6.6859,149.57,149.36,45.25098]
[1724795755987,6.6853,149.59,149.36,45.25098]
[1724795756309,39.25047867,149.66,149.38,13.2153]
[1724795756506,39.25047867,149.66,149.39,65.12549]
[1724795756708,39.25047867,149.66,149.4,0.12549]
[1724795757224,45.93267867,149.66,149.41,13.2153]
[1724795757509,6.6823,149.65,149.43,26.989]
[1724795757687,6.6823,149.65,149.44,45.25098]
[1724795758407,66.7014,149.69,149.44,45.25098]
[1724795758408,6.6828,149.64,149.44,45.25098]
[1724795758605,6.6831,149.63,149.44,45.25098]
[1724795759115,6.97573058,149.67,149.44,0.25098]
[1724795759410,23.4783809,149.7,149.46,12.7492]
[1724795759617,6.6809,149.69,149.47,0.25098]
[1724795759920,6.97396397,149.71,149.47,20.25098]
[1724795760097,6.6796,149.71,149.48,12.7492]
[1724795760291,6.6796,149.71,149.49,20.25098]
[1724795760593,70.48805272,149.76,149.51,23.333]
[1724795760913,20.25098,149.74,149.53,12.9085]
[1724795761214,6.6784,149.74,149.54,45.25098]
[1724795761457,20.25098,149.74,149.54,45.25098]
[1724795761593,6.6789,149.73,149.54,45.25098]
[1724795761915,20.25098,149.74,149.54,45.25098]
[1724795762087,18.78193988,149.77,149.54,45.25098]
[1724795762414,50.4539617,149.78,149.54,45.25098]
[1724795762617,6.6787,149.73,149.54,45.25098]
[1724795762792,113.9804631,149.78,149.54,45.25098]
[1724795762793,6.6791,149.72,149.54,45.25098]
[1724795763496,6.6795,149.71,149.54,45.25098]
[1724795763690,6.6795,149.71,149.54,0.25098]
[1724795763906,6.6812,149.68,149.53,12.9085]
[1724795764108,0.25098,149.67,149.53,12.9085]
[1724795764311,20.0,149.69,149.53,12.9085]
[1724795764509,0.25098,149.68,149.53,12.9085]
[1724795764730,45.0,149.68,149.53,12.9085]
[1724795765021,6.6823,149.65,149.53,12.9085]
[1724795765221,6.93368,149.64,149.53,12.9085]
[1724795765721,51.6831,149.63,149.53,12.9085]
[1724795765922,20.0,149.63,149.53,12.9085]
[1724795766426,6.6841,149.61,149.53,12.9085]
[1724795766625,20.0,149.6,149.53,12.9085]
[1724795767200,6.684,149.61,149.53,12.9085]
[1724795767400,20.0,149.6,149.53,12.9085]
[1724795768001,51.81059,149.59,149.43,12.955]
[1724795768319,71.81099,149.58,149.43,12.955]
[1724795768536,0.12549,149.57,149.43,12.955]
[1724795769221,70.0,149.63,149.43,12.955]
[1724795769417,6.687,149.55,149.43,12.955]
[1724795769609,50.0,149.61,149.43,12.955]
[1724795769610,6.6862,149.57,149.43,12.955]
[1724795769815,65.25098,149.56,149.43,12.955]
[1724795770715,6.6867,149.55,149.43,12.955]
[1724795770924,20.12549,149.54,149.43,12.955]
[1724795771128,65.25098,149.56,149.43,12.955]
[1724795771431,20.0,149.53,149.43,12.955]
[1724795771734,65.25098,149.56,149.43,12.955]
[1724795771909,71.93728,149.56,149.43,12.955]
[1724795772105,65.25098,149.56,149.43,12.955]
[1724795772306,71.93738,149.56,149.43,12.955]
[1724795772930,65.25098,149.56,149.44,1.33483861]
[1724795773130,20.0,149.56,149.44,1.33483861]
[1724795773427,6.97826386,149.62,149.45,0.12549]
[1724795773615,6.6841,149.61,149.44,0.25098]
[1724795773815,6.6845,149.6,149.44,0.25098]
[1724795774125,6.6845,149.6,149.44,0.12549]
[1724795774328,6.6845,149.6,149.43,12.955]
[1724795774709,45.25098,149.59,149.43,12.955]
[1724795774917,6.6845,149.6,149.44,0.12549]
[1724795775112,6.9774729,149.62,149.44,0.25098]
[1724795775309,6.6818,149.66,149.45,12.3682]
[1724795775506,12.7914,149.72,149.47,24.0766]
[1724795775507,23.47967489,149.7,149.47,24.0766]
[1724795775726,6.6798,149.71,149.48,20.25098]
[1724795776031,6.97267318,149.72,149.49,12.2088]
[1724795776233,6.97267318,149.72,149.51,12.2088]
[1724795776458,50.0,149.76,149.53,25.0733]
[1724795776727,6.97160464,149.72,149.54,0.12549]
[1724795776932,70.25359318,149.75,149.54,0.25098]
[1724795777121,13.64959009,149.75,149.54,0.25098]
[1724795777308,6.6782,149.75,149.54,0.25098]
[1724795777910,6.6788,149.73,149.54,0.25098]
[1724795778231,6.6805,149.69,149.53,25.0733]
[1724795778425,6.6798,149.71,149.53,25.0733]
[1724795779116,51.93098,149.7,149.53,25.0733]
[1724795779335,71.93098,149.7,149.53,25.0733]
[1724795779518,6.6805,149.69,149.53,25.0733]
[1724795779714,65.25098,149.68,149.54,0.25098]
[1724795781842,6.6867,149.55,149.46,13.0713]
[1724795782011,20.25098,149.54,149.46,13.0713]
[1724795782213,20.0,149.53,149.46,13.0713]
[1724795783046,0.25098,149.54,149.46,13.0713]
[1724795783221,45.25098,149.54,149.4,13.7737]
[1724795783428,45.25098,149.54,149.4,27.09]
[1724795783429,20.0,149.53,149.4,27.09]
[1724795783628,45.25098,149.52,149.4,27.09]
[1724795783843,20.0,149.51,149.4,27.09]
[1724795784017,0.12549,149.5,149.4,27.09]
[1724795784342,20.0,149.51,149.4,27.09]
[1724795784649,6.6864,149.56,149.4,27.09]
[1724795784813,20.0,149.55,149.4,27.09]
[1724795785219,50.5089,149.55,149.4,13.3163]
[1724795785516,50.5089,149.55,149.33,13.7737]
[1724795785517,6.6896,149.49,149.34,12.9715]
[1724795785730,65.25098,149.48,149.34,12.9715]
[1724795786818,71.94098,149.48,149.34,12.9715]
[1724795788648,72.23466777,149.48,149.34,12.9715]
[1724795788949,26.98368777,149.48,149.34,12.9715]
[1724795789447,20.0,149.48,149.34,12.9715]
[1724795789650,26.98306654,149.5,149.34,12.9715]
[1724795789818,33.67196654,149.5,149.34,12.9715]
[1724795790141,33.67196654,149.5,149.35,0.25098]
[1724795790636,30.5089,149.55,149.36,1.33726912]
[1724795790843,6.6878,149.53,149.37,0.25098]
[1724795791224,80.5089,149.55,149.37,0.12549]
[1724795791421,80.5089,149.55,149.34,12.9715]
[1724795791619,30.5089,149.55,149.35,0.25098]
[1724795791818,6.98159517,149.56,149.35,0.25098]
[1724795792253,6.6854,149.58,149.35,20.25098]
[1724795792616,6.6847,149.6,149.37,13.7737]
[1724795792841,6.6847,149.6,149.39,13.2437]
[1724795793144,6.6847,149.6,149.4,0.25098]
[1724795793318,6.685,149.59,149.4,0.25098]
[1724795793924,6.6858,149.57,149.4,0.25098]
[1724795794442,6.6863,149.56,149.4,0.12549]
[1724795794943,0.12549,149.55,149.4,0.12549]
[1724795795121,0.25098,149.55,149.4,0.12549]
[1724795795324,45.25098,149.55,149.4,0.12549]
[1724795795642,20.0,149.54,149.4,0.12549]
[1724795795844,0.25098,149.53,149.4,0.25098]
[1724795796835,20.0,149.54,149.4,0.25098]
[1724795798150,6.6845,149.6,149.4,0.25098]
[1724795798324,13.7737,149.56,149.4,0.25098]
[1724795798626,20.0,149.55,149.4,0.25098]
[1724795799255,50.0,149.68,149.41,9.59143166]
[1724795799555,20.0,149.68,149.44,5.0]
[1724795799759,50.0,149.73,149.45,0.25098]
[1724795799939,115.22840444,149.73,149.45,20.25098]
[1724795800125,6.6808,149.69,149.45,0.25098]
[1724795800320,6.68,149.7,149.46,20.0]
[1724795800642,92.03123644,149.72,149.47,0.25098]
[1724795800822,6.6799,149.71,149.47,0.25098]
[1724795801018,71.90770444,149.72,149.47,0.25098]
[1724795801243,53.63015664,149.72,149.47,5.25098]
[1724795801451,6.6793,149.72,149.48,20.0]
[1724795801621,6.6793,149.72,149.49,0.25098]
[1724795801820,20.0,149.72,149.49,0.25098]
[1724795802037,50.0,149.71,149.5,13.1356]
[1724795802239,6.6815,149.67,149.5,13.1356]
[1724795802442,50.0,149.67,149.5,13.1356]
[1724795802760,6.6836,149.62,149.5,13.1356]
[1724795803141,6.684,149.61,149.5,13.1356]
[1724795803339,0.25098,149.6,149.5,13.1356]
[1724795803643,20.25098,149.6,149.5,13.1356]
[1724795803842,45.0,149.59,149.5,13.1356]
[1724795804038,20.25098,149.58,149.5,13.1356]
[1724795804871,20.25098,149.58,149.32,12.5667]
[1724795805045,45.0,149.57,149.32,12.5667]
[1724795805249,20.25098,149.56,149.32,12.5667]
[1724795805450,20.0,149.56,149.34,50.0]
[1724795805656,20.0,149.56,149.36,12.5667]
[1724795805864,6.6825,149.65,149.38,12.5667]
[1724795806339,6.6825,149.65,149.4,12.5667]
[1724795806540,6.6825,149.65,149.42,12.5667]
[1724795806763,6.6825,149.65,149.43,20.25098]
[1724795807163,6.6825,149.65,149.44,12.5667]
[1724795807370,30.1587645,149.68,149.46,12.5667]
[1724795807664,64.2806,149.74,149.47,20.25098]
[1724795807665,30.1578645,149.7,149.47,20.25098]
[1724795807871,6.6801,149.7,149.47,20.25098]
[1724795808163,65.23549954,149.73,149.48,12.5667]
[1724795808367,65.23549954,149.73,149.49,0.25098]
[1724795808565,65.23549954,149.73,149.49,20.25098]
[1724795808765,65.23549954,149.73,149.5,32.7072]
[1724795808937,65.23549954,149.73,149.51,0.25098]
[1724795809144,65.23549954,149.73,149.51,20.25098]
[1724795809567,26.6792,149.72,149.51,20.25098]
[1724795809768,20.0,149.72,149.51,20.25098]
[1724795809966,6.6818,149.67,149.5,12.7072]
[1724795810165,50.0,149.69,149.5,12.7072]
[1724795810390,66.7012,149.69,149.5,12.7072]
[1724795810670,50.0,149.67,149.5,12.7072]
[1724795810878,45.25098,149.66,149.5,12.7072]
[1724795811058,26.6823,149.65,149.5,12.7072]
[1724795811260,45.25098,149.64,149.5,12.7072]
[1724795811480,20.0,149.63,149.5,12.7072]
[1724795811665,6.684,149.61,149.5,12.7072]
[1724795811860,20.25098,149.6,149.5,12.7072]
[1724795812067,26.6833,149.63,149.5,12.7072]
[1724795812373,51.6836,149.62,149.5,12.7072]
[1724795812876,20.0,149.61,149.5,12.7072]
[1724795813455,0.25098,149.6,149.5,12.7072]
[1724795813652,6.6853,149.59,149.5,12.7072]
[1724795813959,26.93628,149.58,149.35,12.853]
[1724795814156,45.0,149.57,149.35,12.853]
[1724795814465,20.12549,149.58,149.35,12.853]
[1724795814654,0.12549,149.57,149.35,12.853]
[1724795815371,20.12549,149.57,149.36,0.12549]
[1724795815565,0.12549,149.57,149.36,0.25098]
[1724795815754,0.25098,149.58,149.37,12.97849]
[1724795815962,0.25098,149.58,149.38,0.12549]
[1724795816163,50.0,149.65,149.39,12.853]
[1724795816164,0.12549,149.59,149.39,12.853]
[1724795816369,0.12549,149.59,149.35,5.12549]
[1724795816370,6.97551602,149.66,149.41,12.853]
[1724795816578,6.6824,149.65,149.43,13.263]
[1724795816881,31.8513,149.68,149.44,20.25098]
[1724795817065,6.6813,149.67,149.44,20.25098]
[1724795817256,38.82593981,149.68,149.44,20.25098]
[1724795817461,38.82593981,149.68,149.45,13.263]
[1724795817674,38.82593981,149.68,149.46,20.25098]
[1724795818584,6.97463981,149.68,149.47,13.263]
[1724795818780,1.92335971,149.7,149.48,20.25098]
[1724795819084,6.68,149.7,149.48,20.25098]
[1724795819586,6.6805,149.69,149.48,20.25098]
[1724795820079,6.68,149.7,149.49,13.263]
[1724795820285,6.68,149.7,149.5,0.25098]
[1724795820685,20.0,149.69,149.5,0.25098]
[1724795822060,6.6805,149.69,149.5,0.25098]
[1724795822258,20.0,149.68,149.5,0.25098]
[1724795822464,20.0,149.68,149.49,13.263]
[1724795822895,45.0,149.67,149.49,13.263]
[1724795823067,20.0,149.66,149.49,13.263]
[1724795823265,0.12549,149.65,149.49,13.263]
[1724795823482,0.25098,149.65,149.49,13.263]
[1724795823889,0.25098,149.65,149.5,0.25098]
[1724795824661,45.25098,149.65,149.49,13.263]
[1724795824867,20.0,149.64,149.49,13.263]
[1724795825061,0.25098,149.65,149.49,13.263]
[1724795825684,0.25098,149.66,149.49,13.263]
[1724795825984,45.25098,149.66,149.5,0.25098]
[1724795826166,20.0,149.65,149.5,0.25098]
[1724795826366,0.25098,149.64,149.5,0.25098]
[1724795827160,45.25098,149.64,149.5,0.25098]
[1724795827367,45.25098,149.64,149.49,13.263]
[1724795827368,20.0,149.63,149.49,13.263]
[1724795827569,45.12549,149.62,149.49,13.263]
[1724795827769,6.6845,149.6,149.49,13.263]
[1724795828076,65.25098,149.59,149.49,13.263]
[1724795828281,20.0,149.58,149.49,13.263]
[1724795828511,6.6883,149.52,149.43,12.1512]
[1724795828664,6.6883,149.52,149.24,55.0]
[1724795828665,20.0,149.51,149.28,12.1512]
[1724795828866,0.25098,149.5,149.28,12.1512]
[1724795829074,6.6895,149.49,149.28,12.1512]
[1724795829280,65.25098,149.48,149.28,12.1512]
[1724795829488,71.94098,149.48,149.28,12.1512]
[1724795829791,71.94108,149.48,149.28,12.1512]
[1724795829976,65.25098,149.48,149.28,12.1512]
[1724795831074,65.25098,149.48,149.29,1.33649511]
[1724795831313,20.0,149.48,149.3,1.33640567]
[1724795831593,30.0971,149.55,149.31,12.1512]
[1724795831775,30.0971,149.55,149.32,1.33640042]
[1724795831973,6.99477663,149.56,149.33,12.27669]
[1724795832194,62.6965,149.61,149.34,20.12549]
[1724795832368,62.6965,149.61,149.36,12.1512]
[1724795832567,69.68965876,149.61,149.37,21.19020364]
[1724795832779,6.99315876,149.61,149.38,12.1512]
[1724795833089,6.99315876,149.61,149.4,12.1512]
[1724795833276,6.6828,149.64,149.41,46.18995218]
[1724795833481,6.97669833,149.62,149.42,1.33747679]
[1724795833797,6.97669833,149.62,149.43,1.46287728]
[1724795833970,6.97669833,149.62,149.41,45.25098]
[1724795833971,6.97669833,149.62,149.44,0.12549]
[1724795834567,30.0971,149.68,149.45,12.7826]
[1724795834767,30.0971,149.68,149.46,45.25098]
[1724795836786,51.93248,149.67,149.46,45.25098]
[1724795837272,20.0,149.66,149.46,45.25098]
[1724795837474,45.25098,149.65,149.46,45.25098]
[1724795837673,20.0,149.64,149.46,45.25098]
[1724795837903,45.25098,149.63,149.46,45.25098]
[1724795838074,20.0,149.62,149.46,0.12549]
[1724795838275,0.25098,149.61,149.46,0.12549]
[1724795838673,45.25098,149.61,149.45,12.7826]
[1724795839015,20.0,149.6,149.45,12.7826]
[1724795839175,45.25098,149.59,149.45,12.7826]
[1724795839380,6.6864,149.56,149.45,12.7826]
[1724795839595,65.25098,149.55,149.45,12.7826]
[1724795839790,71.93778,149.55,149.45,12.7826]
[1724795839986,20.25098,149.55,149.45,12.7826]
[1724795840298,20.0,149.54,149.45,12.7826]
[1724795840497,0.25098,149.55,149.45,12.7826]
[1724795841680,45.25098,149.56,149.45,12.7826]
[1724795841994,50.0,149.64,149.45,12.7826]
[1724795842203,50.0,149.64,149.46,45.59943296]
[1724795843071,50.0,149.64,149.47,0.34956225]
[1724795843274,65.0,149.63,149.46,45.25098]
[1724795843491,0.12549,149.62,149.46,45.25098]
[1724795843694,6.6842,149.61,149.46,45.25098]
[1724795843884,65.12549,149.6,149.46,45.25098]
[1724795844178,50.0,149.66,149.46,45.25098]
[1724795844374,6.6819,149.66,149.46,45.25098]
[1724795845000,36.7781,149.68,149.46,45.25098]
[1724795845200,30.0971,149.68,149.46,45.25098]
[1724795845389,50.0,149.65,149.46,45.25098]
[1724795845578,6.6833,149.63,149.46,45.25098]
[1724795846005,6.6837,149.62,149.46,45.25098]
[1724795846301,20.0,149.61,149.46,45.25098]
[1724795846476,20.0,149.64,149.46,45.25098]
[1724795846679,45.25098,149.63,149.46,45.25098]
[1724795846884,20.0,149.62,149.46,45.25098]
[1724795847098,45.25098,149.61,149.46,45.25098]
[1724795847311,20.0,149.6,149.46,45.25098]
[1724795847484,0.25098,149.59,149.46,45.25098]
[1724795849790,26.816933,149.62,149.46,45.25098]
[1724795849996,6.6818,149.66,149.46,45.25098]
[1724795851004,6.6824,149.65,149.46,45.25098]
[1724795851184,20.0,149.64,149.46,45.25098]
[1724795851522,6.684,149.62,149.46,45.25098]
[1724795851803,20.0,149.61,149.46,45.12549]
[1724795852010,45.25098,149.6,149.46,45.12549]
[1724795852207,20.0,149.59,149.46,45.12549]
[1724795852514,0.25098,149.58,149.45,12.7826]
[1724795852683,51.93638,149.58,149.45,12.7826]
[1724795853005,6.6859,149.57,149.45,12.7826]
[1724795853308,20.25098,149.56,149.45,12.7826]
[1724795853494,45.0,149.55,149.45,12.7826]
[1724795853688,20.25098,149.54,149.45,12.7826]
[1724795853897,20.0,149.54,149.45,12.7826]
[1724795854192,26.6846,149.6,149.45,12.7826]
[1724795854797,26.6846,149.6,149.46,45.0]
[1724795855112,20.0,149.6,149.46,45.0]
[1724795855318,20.0,149.61,149.46,45.0]
[1724795855510,6.684,149.61,149.46,45.0]
[1724795855811,20.0,149.6,149.46,45.0]
[1724795855994,20.0,149.6,149.45,12.7826]
[1724795856188,51.93598,149.59,149.45,12.7826]
[1724795856395,20.0,149.58,149.45,12.7826]
[1724795856613,45.25098,149.57,149.45,12.7826]
[1724795856801,20.0,149.56,149.45,12.7826]
[1724795857003,0.25098,149.55,149.45,12.7826]
[1724795857201,20.0,149.56,149.45,12.7826]
[1724795857404,0.12549,149.55,149.45,12.7826]
[1724795858990,20.0,149.59,149.46,45.0]
[1724795859201,45.25098,149.58,149.46,45.0]
[1724795859398,50.0,149.67,149.47,0.12549]
[1724795859590,1.9141231,149.63,149.47,0.25098]
[1724795859796,6.6831,149.64,149.47,0.25098]
[1724795860407,6.6831,149.63,149.45,12.7826]
[1724795860794,26.6838,149.62,149.45,12.7826]